Cogmind - Beta 13 @@@ ROGUE MODE // 2024.04.22 @ 00:36:23 Player: ThatBishHoly Result: Destroyed by as-92634 with Assembled Maul Performance ------------- Evolutions (1) 500 Regions Visited (4) 800 Robots Destroyed (8) 40 Value Destroyed (233) 233 Prototype IDs (1) 20 Alien Tech Used (0) 0 Bonus (3) 3 TOTAL SCORE: 1596 Bonus ------- Follower Combat Kills 25 Friendly Fire -22 Cogmind --------- Core Integrity 0/400 Matter 300/300 Energy 100/100 System Corruption 4% Temperature Cool (0) Movement Core (1350) Ox26 Location -9/Mines Parts ------- > --- POWER (2) -------- (None) > --- PROPULSION (2) --- (None) > --- UTILITY (2) ------ Huge Storage Unit > --- WEAPON (3) ------- (None) > --- INVENTORY (25) --- Improved Aluminum Leg Signal Interpreter Spread Laser Peak State ------------ > --- POWER ------------ Light Nuclear Core Light Nuclear Core > --- PROPULSION ------- Light Treads Light Treads > --- UTILITY ---------- Large Storage Unit Splice Drone Bay > --- WEAPON ----------- EM Pulse Gun Spread Laser Beam Cannon > --- INVENTORY -------- Ion Engine Improved Ion Engine Signal Interpreter Mini Grenade Launcher [Rating: 20] Favorites ----------- Power Light Nuclear Core Engine Improved Ion Engine Power Core Light Nuclear Core Propulsion Light Treads Treads Light Treads Utility Splice Drone Bay Device Splice Drone Bay Storage Large Storage Unit Weapon EM Pulse Gun Energy Gun EM Pulse Gun Energy Cannon Beam Cannon Launcher Mini Grenade Launcher Build | -11 -10 -10 -9 -9 ------- Run | Yrd Mat Min Mat Min Slots Evolved 2 | . . . 2 . Power 1 | . . . 1 . Propulsion . | . . . . . Utility . | . . . . . Weapon 1 | . . . 1 . Parts Attached 19 | 6 3 1 9 . Power 5 | 1 1 . 3 . Engine 3 | 1 . . 2 . Core 2 | . 1 . 1 . Reactor . | . . . . . Propulsion 4 | 2 . . 2 . Treads 4 | 2 . . 2 . Leg . | . . . . . Wheel . | . . . . . Hover . | . . . . . Flight . | . . . . . Utility 4 | 1 1 1 1 . Device 1 | . . 1 . . Storage 3 | 1 1 . 1 . Processor . | . . . . . Hackware . | . . . . . Protection . | . . . . . Artifact . | . . . . . Weapon 6 | 2 1 . 3 . Energy Gun 4 | 2 . . 2 . Energy Cannon 1 | . 1 . . . Ballistic Gun . | . . . . . Ballistic Cannon . | . . . . . Launcher 1 | . . . 1 . Special Weapon . | . . . . . Impact Weapon . | . . . . . Slashing Weapon . | . . . . . Piercing Weapon . | . . . . . Special Melee Weapon . | . . . . . Unidentified Prototypes 1 | . . 1 . . Parts Lost 8 | . . . . 8 Power 2 | . . . . 2 Propulsion 2 | . . . . 2 Utility 1 | . . . . 1 Weapon 3 | . . . . 3 Highest Loss Streak 8 | . . . . 8 To Critical Strikes . | . . . . . Average Slot Usage (%) 96 | . 85 94 100 97 Engine 4 | . 7 . 7 . Core 14 | . 7 14 14 21 Treads 23 | . 28 28 22 21 Device 9 | . . 9 11 10 Storage 11 | . 14 14 11 11 Energy Gun 16 | . 24 14 18 10 Energy Cannon 10 | . 3 14 11 10 Launcher 3 | . . . 3 10 Naked Turns . | . . . . . Heaviest Build 104 | 14 30 38 104 104 Greatest Support 40 | 40 40 40 40 40 Greatest Overweight (x) 32 | 2 . . 2 32 Average Overweight (x) . | . . . 1 2 Largest Inventory Capacity 25 | 8 15 15 25 25 Average Capacity 16 | 6 11 15 16 25 Most Carried 5 | 5 3 4 4 3 Average Carried 2 | 2 2 3 1 2 Final Capacity 25 | 8 15 15 25 25 Final Carried 3 | 1 3 3 2 3 Class Distribution -------------------- 35% | Mutant 33% | Gunner 31% | Scavenger-Gunner Dominant Class ---------------- Mutant | -10/Materials Mutant | -10/Mines Gunner | -9/Materials Scavenger-Gunner | -9/Mines Resources | -11 -10 -10 -9 -9 ----------- Run | Yrd Mat Min Mat Min Matter Collected 406 | 118 . 26 232 30 Remotely . | . . . . . Salvage Created 252 | . 97 . 155 . Parts 9 | . 1 . 8 . Haulers Intercepted . | . . . . . Recyclers Shooed . | . . . . . Parts Field Recycled . | . . . . . Retrieved Matter . | . . . . . Parts Self-Destructed . | . . . . . Prevented . | . . . . . Kills | -11 -10 -10 -9 -9 ------- Run | Yrd Mat Min Mat Min Combat Hostiles Destroyed 5 | . 2 . 3 . Guns 4 | . 2 . 2 . Cannons 1 | . . . 1 . Classes Destroyed 3 | . 1 . 2 . Builder 1 | . . . 1 . Watcher 2 | . . . 2 . Grunt 5 | . 2 . 3 . Best Kill Streak 2 | . 2 . 2 . Combat Bots Only 2 | . 2 . 2 . Max Kills in Single Turn 1 | . 1 . 1 . Gunslinging . | . . . . . Exploded . | . . . . . Melee . | . . . . . Uniques/NPCs Destroyed . | . . . . . Combat | -11 -10 -10 -9 -9 -------- Run | Yrd Mat Min Mat Min Hostile Shots Fired 125 | . 37 . 37 51 Missed 29 | . 8 . 11 10 Damage Taken 1553 | . 359 . 359 835 Core 471 | . 48 . 49 374 Absorbed by Shields . | . . . . . Core Remaining (%) 90 | 100 . 80 . . Volleys Fired 23 | . 16 . 7 . Largest 3 | . 2 . 3 . Hottest 165 | . 90 . 165 . Shots Fired 53 | . 32 . 21 . Gun 44 | . 32 . 12 . Cannon 7 | . . . 7 . Launcher 2 | . . . 2 . Special . | . . . . . Kinetic . | . . . . . Thermal 28 | . 16 . 12 . Explosive 2 | . . . 2 . Electromagnetic 23 | . 16 . 7 . Robot Hit Streak 7 | . 7 . 6 . Robot Miss Streak 4 | . 2 . 4 . Penetration Max . | . . . . . Secondary Targets 1 | . 1 . . . Max Gunslinging Chain 1 | . 1 . . . Shots Hit Robots 29 | . 18 . 11 . Core Hits 16 | . 5 . 11 . Critical Kills . | . . . . . Critical Parts Destroyed . | . . . . . Critical Strikes 1 | . 1 . . . Burn 1 | . 1 . . . Melee Attacks . | . . . . . Impact . | . . . . . Slashing . | . . . . . Piercing . | . . . . . Sneak Attacks . | . . . . . Combat Hostiles . | . . . . . Follow-up Attacks . | . . . . . Damage Inflicted 490 | . 226 . 264 . Guns 320 | . 226 . 94 . Cannons 70 | . . . 70 . Explosions 98 | . . . 98 . Melee . | . . . . . Ramming 2 | . . . 2 . Kinetic . | . . . . . Thermal 244 | . 134 . 110 . Explosive 98 | . . . 98 . Electromagnetic 146 | . 92 . 54 . Impact . | . . . . . Slashing . | . . . . . Piercing . | . . . . . Highest Corruption 4 | . . . . 4 Average Corruption 4 | . . . . 4 Corruption Purged . | . . . . . Corruption Blocked . | . . . . . Overload Shots . | . . . . . Overflow Damage . | . . . . . Projectiles . | . . . . . Explosions . | . . . . . Melee . | . . . . . Knockbacks . | . . . . . Impact . | . . . . . Kinetic . | . . . . . Secondary . | . . . . . Self-Inflicted Damage 37 | . . . 37 . Shots 1 | . . . 1 . Rammed 1 | . . . 1 . Targets Rammed 1 | . . . 1 . Kicked . | . . . . . Crushed . | . . . . . Highest Temperature 457 | . 457 . 233 . Average Temperature 182 | . 259 . 102 . Received Heat Transfer 438 | . 219 . 159 60 Effects 5 | . 5 . . . Shutdowns 2 | . 2 . . . Damage (major) 3 | . 3 . . . Siege Activations . | . . . . . Robots Corrupted . | . . . . . Combat Hostiles . | . . . . . Parts Fried . | . . . . . Impact Corruptions . | . . . . . Robots Melted . | . . . . . Combat Hostiles . | . . . . . Parts Melted 2 | . 2 . . . Heat Transferred 679 | . 481 . 198 . Parts Sabotaged . | . . . . . Parts Stolen . | . . . . . Parts Stripped . | . . . . . Power Chain Reactions . | . . . . . Alert | -11 -10 -10 -9 -9 ------- Run | Yrd Mat Min Mat Min Peak Influence 79 | . 50 19 79 20 Initial 19 | . . 19 . 15 Average 21 | . 29 18 23 18 Maximum Alert Level . | . . . . . Low Security (%) 100 | 100 100 100 100 100 Level 1 . | . . . . . Level 2 . | . . . . . Level 3 . | . . . . . Level 4 . | . . . . . Level 5 . | . . . . . High Security . | . . . . . Max Security . | . . . . . Squads Dispatched 3 | . 1 . 2 . Investigation 1 | . 1 . . . Extermination . | . . . . . Reinforcement 2 | . . . 2 . Assault . | . . . . . Garrison . | . . . . . Intercept . | . . . . . Searches Triggered . | . . . . . Construction Impeded . | . . . . . Haulers Reinforced . | . . . . . Active Scanning Responses . | . . . . . Cargo Convoy Interrupts . | . . . . . Stealth | -11 -10 -10 -9 -9 --------- Run | Yrd Mat Min Mat Min Distress Signals 1 | . . . 1 . Communications Jammed . | . . . . . Distress Signals . | . . . . . Times Spotted 33 | . 4 . 17 12 Peak Tracking Total 12 | . 2 . 4 12 Tactical Retreats . | . . . . . Traps | -11 -10 -10 -9 -9 ------- Run | Yrd Mat Min Mat Min Traps Triggered 1 | . 1 . . . Indirectly . | . . . . . Trap Hack Attempts . | . . . . . Triggered . | . . . . . Disarmed . | . . . . . Reprogrammed . | . . . . . Reused . | . . . . . Traps Extracted . | . . . . . Installed . | . . . . . Triggered . | . . . . . Machines | -11 -10 -10 -9 -9 ---------- Run | Yrd Mat Min Mat Min Machines Disabled . | . . . . . Max in Single Turn . | . . . . . Machines Repaired . | . . . . . Machines Dismantled . | . . . . . Machines Sabotaged . | . . . . . Overloaded Fab Kills . | . . . . . Hacking | -11 -10 -10 -9 -9 --------- Run | Yrd Mat Min Mat Min Machines Accessed 2 | . . 1 . 1 Terminals 1 | . . . . 1 Fabricators . | . . . . . Repair Stations . | . . . . . Recycling Units . | . . . . . Scanalyzers . | . . . . . Garrison Access . | . . . . . Total Hacks 2 | . . 1 . 1 Successful 2 | . . 1 . 1 Failed . | . . . . . Catastrophic . | . . . . . Database Lockouts . | . . . . . Manual . | . . . . . Terminals 1 | . . . . 1 Fabricators . | . . . . . Repair Stations . | . . . . . Recycling Units . | . . . . . Scanalyzers . | . . . . . Garrison Access . | . . . . . Terminal Hacks 2 | . . 1 . 1 Open Door 1 | . . 1 . . Zone Layout 1 | . . . . 1 Fabricator Hacks . | . . . . . Repair Station Hacks . | . . . . . Recycling Unit Hacks . | . . . . . Scanalyzer . | . . . . . Garrison Access Hacks . | . . . . . Unauthorized Hacks . | . . . . . Terminals . | . . . . . Fabricators . | . . . . . Repair Stations . | . . . . . Recycling Units . | . . . . . Scanalyzers . | . . . . . Garrison Access . | . . . . . Data Cores Recovered . | . . . . . Used . | . . . . . Hacking Detections . | . . . . . Full Trace Events . | . . . . . Feedback Events . | . . . . . Feedback Blocked . | . . . . . Robot Schematics Acquired . | . . . . . Robots Built . | . . . . . Authchips . | . . . . . Time . | . . . . . Total Robot Build Rating . | . . . . . Part Schematics Acquired . | . . . . . Parts Built . | . . . . . Authchips . | . . . . . Time . | . . . . . Total Part Build Rating . | . . . . . Parts Repaired . | . . . . . Time . | . . . . . Parts Recycled . | . . . . . Recycled Matter . | . . . . . Retrieved Matter . | . . . . . Retrieved Components . | . . . . . Parts Scanalyzed . | . . . . . Part Schematics Acquired . | . . . . . Parts Damaged . | . . . . . Bothacking | -11 -10 -10 -9 -9 ------------ Run | Yrd Mat Min Mat Min Used RIF Installer . | . . . . . Robots Hacked . | . . . . . Non-combat . | . . . . . Combat . | . . . . . Robot Hacks Applied . | . . . . . Relay Couplers Released . | . . . . . Fabnet Peak Effective % . | . . . . . Robots Rewired . | . . . . . Allies Hacked . | . . . . . Hacks Repelled . | . . . . . Allies | -11 -10 -10 -9 -9 -------- Run | Yrd Mat Min Mat Min Total Allies 5 | . . . 5 . Largest Group 2 | . . . 2 . Highest-Rated Group 16 | . . . 16 . Highest-Rated Ally 8 | . . . 8 . Total Orders . | . . . . . Ally Attacks 48 | . . . 44 4 Total Damage 216 | . . . 192 24 Kills 4 | . . . 4 . Allies Corrupted . | . . . . . Allies Melted . | . . . . . Intel | -11 -10 -10 -9 -9 ------- Run | Yrd Mat Min Mat Min Robot Analysis Total . | . . . . . Derelict Logs Recovered 1 | . . 1 . . Drone Launches 45 | . . . 41 4 Drone Recoveries 42 | . . . 38 4 Exploration | -11 -10 -10 -9 -9 ------------- Run | Yrd Mat Min Mat Min Turns Passed 1833 | 54 176 404 898 301 Spaces Moved 789 | 36 76 247 339 91 Core 20 | 19 . . . 1 Treads 769 | 17 76 247 339 90 Legs . | . . . . . Wheels . | . . . . . Hover . | . . . . . Flight . | . . . . . Fastest Speed 50 | 50 160 160 240 320 Average Speed 217 | 117 160 160 250 334 Slowest Speed 1650 | 160 160 160 320 1650 Overloaded Moves . | . . . . . Propulsion Burnouts . | . . . . . Robots Hopped . | . . . . . Cave-ins Triggered . | . . . . . Exploration Rate (%) 25 | 4 15 48 34 26 Regions Visited 4 Branch Regions 2 Pre-discovered Areas . | . . . . . Known Exits Taken . | . . . . . Unknown Exits Taken 4 | 1 1 1 1 . Scrap Searched 1 | . . 1 . . Spaces Dug . | . . . . . Terrain Destroyed 13 | . . . 13 . Melee . | . . . . . Projectile . | . . . . . AOE 13 | . . . 13 . Terrain Rammed . | . . . . . Walls Destroyed . | . . . . . Machines Disabled . | . . . . . Actions | -11 -10 -10 -9 -9 --------- Run | Yrd Mat Min Mat Min Total 866 | 47 98 256 373 92 Wait 8 | . . 8 . . Move 785 | 35 75 246 338 91 Hop . | . . . . . Pick Up 18 | 5 3 1 8 1 Fast Attach 3 | 3 . . . . Attach 7 | 3 1 1 2 . Detach . | . . . . . Swap 9 | . 2 . 7 . Drop 9 | 1 1 . 7 . Fire 23 | . 16 . 7 . Melee . | . . . . . Ram . | . . . . . Kick . | . . . . . Crush 1 | . . . 1 . Escape Stasis . | . . . . . Rewire 3 | . . . 3 . Trap . | . . . . . Miscellaneous . | . . . . . Route ------- -11/Scrapyard -10/Materials -10/Mines (discovered 2 exits: [*Mat x2]) -9/Materials -9/Mines History --------- Turn | Location | Event 14 | -11/Scrapyard | Discovered new exit (range 15) 55 | -11/Scrapyard | Entered Materials 213 | -10/Materials | Discovered new exit (range 12) 231 | -10/Materials | Entered Mines 307 | -10/Mines | Build established: Mutant 364 | -10/Mines | Found the Drone Emporium 376 | -10/Mines | Found Prototype Device 377 | -10/Mines | Identified Splice Drone Bay 484 | -10/Mines | Learned 4 Materials zone layouts 508 | -10/Mines | Discovered new exit (range 9) 608 | -10/Mines | Discovered new exit (range 10) 635 | -10/Mines | Entered Materials 635 | -9/Materials | Evolved 2 slots: Power x1, Weapon x1 932 | -9/Materials | Build established: Gunner 966 | -9/Materials | Lost 3 allies 1090 | -9/Materials | Discovered new exit (range 17) 1533 | -9/Materials | Entered Mines 1540 | -9/Mines | Build established: Scavenger-Gunner 1798 | -9/Mines | Assembled infested the area 1830 | -9/Mines | Core integrity fell below 50% 1834 | -9/Mines | Core integrity fell below 20% 1834 | -9/Mines | Destroyed by as-92634 with Assembled Maul Last Messages --------------- 01820_ Lgt. Nuclear Core destroyed. 01821_ Splice Drone released from Splice Drone Bay. 01821_ Splice Drone sneak attacks. 01821_ Splice Drone injecting as-15974... 01821_ Lgt. Treads destroyed. 01821_ Splice Drone retrieved by Splice Drone Bay. 01822_ Lgt. Treads destroyed. 01822_ Splice Drone retrieved by Splice Drone Bay. 01822_ EM Pulse Gun destroyed. 01823_ Splice Drone released from Splice Drone Bay. 01823_ Splice Drone sneak attacks. 01823_ Splice Drone injecting as-03652... 01824_ Splice Drone released from Splice Drone Bay. 01824_ Splice Drone retrieved by Splice Drone Bay. 01826_ Mni. Grenade Launcher destroyed. 01826_ Splice Drone Bay destroyed. 01827_ Beam Cannon destroyed. 01830_ Lgt. Nuclear Core destroyed. 01830_ System corrupted by crushing effect (+4). 01832_ as-03652 destroyed. Map ----- +----------------------------------------------------+ | ?????????????????????????????? ??????????????????? | | ???????????????????????????? ?????????????????? | | ?????????????????????????? ?????????????????? | | ????????????????????????? ?????????????????? | | ?????????????????????????? ?????????????????? | | ??????????????????????????? ????????????????? | | ???????????????????????????# #????????????????? | | ???????????????????????????? #????????????????? | | ????????????????????????????? ##???????????????? | | ?????????????????????????????# #??????#####????? | | ?????????????????????????????# #?????## ##???? | | ?????????????????????????????# #?????# ##??? | | ?????????????????????????????# ##????# #??? | | ????????????????????????????## ###### #??? | | ???????????????????????????## ## #??? | | ???????????????????????????# #???? | | ???????????????????????????# """ #????? | | ???????????????????????????# """ ##???? | | ???????????????????????????# """ ####? | | ??????????????????????????## ## ## | | ?????????????????????????## ## ### # | | ??????????????????????#### ######?# # | | ??????????????????##### ##??##### ##### # | | ?????????????????## ##??## ##??## # | | ?????????????????# a= #??## ##??# ## | | ?????????????????# a@! #??# #??####? | | ?????????????????## ## %aa #??# #######? | | ??????????????????##??# aaa##??## #? | | ??????????????????????#aa###????### ###### #? | | ??????????????????????#a #?????#### # ##????# ## | | ??????????????????????#a #?????# ####?????# | | ?????????????????????? ????# ## #????????#### | | ????????????????????? ??## ## #????????###? | | ???????????????????? #### #????????#T## | | ??????????????????? ###?# [ ##???????# | | ?????????????????? ####???# ##??????# | | ????????????????? #???????# % ##?????# | | ???????????????? ????????# ## #?????# | | ????????????????? ???????# #######?????# | | ?????????????????? ????????# #???????????# | | ?????????????????? ????????# #???????????# | | ????????????????? #????????## #???????????#### | | ????????????????? ??????????## ##??????????????? | | ??????????????????????????????####???????????????? | | ?????????????????????????????????????????????????? | | ?????????????????????????????????????????????????? | | ?????????????????????????????????????????????????? | | ?????????????????????????????????????????????????? | | | | | +----------------------------------------------------+ Best States ------------- Heat Dissipation 28 Energy Generation 23 Energy Capacity 325 Matter Stores 300 Matter Capacity 300 Sight Range 16 Terrain Scan Density 10 Evasion (%) 50 Recoil Reduction 2 Item Schematics ----------------- None Robot Schematics ------------------ None Fabricated ------------ Nothing Alien Tech Used ----------------- None Achievements -------------- Error 47 Factory Defaults Release The Drones! Challenges ------------ None Game ------ Seed BoreTargetingLeg Manual? 0 Play Time 00:15:18 Cumulative 12.0 hours Start 2024.04.22 @ 00:21:32 End 2024.04.22 @ 00:36:23 Sessions 1 Manual Loads 0 Difficulty Rogue Special Mode None Game No. 36 Rogue 36 Adventurer 0 Explorer 0 Win Type - Total 0 Types 0/0/0/0/0/0/0/0/0 Lore% 12 Gallery% 23 Achievement% 20 Wizard Run 0 Options --------- Layout 1 ASCII 0 Keyboard 0 Movement Mouse Keybinds 0 Fullscreen 1 Font 32/SmallcapsGlow Map View 130x35 Zoom Use 0% Tactical HUD 1 Map Filters NONE Filters NONE Steam 1 RUN: 1ef708be-e4f6-4cf0-b2e4-10704d34e121